fUSD/lending_fUSD_20240608
["ID","MTS","AMOUNT","RATE_DAILY","PERIOD"]
[328839577,1717860680714,-500.0,0.00029863,4]
[328839578,1717860680724,-3230.48,0.00029863,4]
[328839579,1717860680734,-500.0,0.00029863,4]
[328839580,1717860680743,-500.0,0.00029863,4]
[328839581,1717860680753,-500.0,0.00029863,4]
[328839582,1717860680763,-3230.48,0.00029863,4]
[328839583,1717860680772,-500.0,0.00029863,4]
[328839584,1717860680782,-500.0,0.00029863,4]
[328839585,1717860680791,-348.38673786,0.00029863,4]
[328839586,1717860680800,-3230.48,0.00029863,4]
[328839587,1717860680810,-500.0,0.00029863,4]
[328839588,1717860680819,-3230.48,0.00029863,4]
[328839589,1717860680828,-500.0,0.00029863,4]
[328839590,1717860680837,-500.0,0.00029863,4]
[328839591,1717860680848,-3230.508,0.00029863,4]
[328839592,1717860680858,-500.0,0.00029863,4]
[328839593,1717860680868,-500.0,0.00029863,4]
[328839594,1717860680878,-192.44913268,0.00029863,4]
[328839595,1717860680887,-389.57193148,0.00029863,4]
[328839596,1717860680898,-614.82350366,0.00029863,4]
[328839597,1717860680908,-1231.54,0.00029863,4]
[328839598,1717860680918,-1231.54,0.00029863,4]
[328839599,1717860680927,-500.0,0.00029863,4]
[328839600,1717860680937,-1231.54,0.00029863,4]
[328839601,1717860680946,-500.0,0.00029863,4]
[328839602,1717860680956,-1231.54,0.00029863,4]
[328839603,1717860680966,-500.0,0.00029863,4]
[328839604,1717860680976,-500.0,0.00029863,4]
[328839605,1717860680986,-1231.54,0.00029863,4]
[328839606,1717860680996,-500.0,0.00029863,4]
[328839607,1717860681006,-500.0,0.00029863,4]
[328839608,1717860681015,-500.0,0.00029863,4]
[328839609,1717860681025,-1231.54,0.00029863,4]
[328839610,1717860681035,-509.51304795,0.00029863,4]
[328839611,1717860681045,-500.0,0.00029863,4]
[328839612,1717860681055,-500.0,0.00029863,4]
[328839613,1717860681064,-1231.54,0.00029863,4]
[328839614,1717860681074,-500.0,0.00029863,4]
[328839615,1717860681084,-500.0,0.00029863,4]
[328839616,1717860681095,-515.18410975,0.00029863,4]
[328839617,1717860681104,-1231.54,0.00029863,4]
[328839618,1717860681114,-500.0,0.00029863,4]
[328839619,1717860681123,-500.0,0.00029863,4]
[328839620,1717860681133,-1231.54,0.00029863,4]
[328839621,1717860681143,-500.0,0.00029863,4]
[328839622,1717860681152,-500.0,0.00029863,4]
[328839623,1717860681161,-1231.54,0.00029863,4]
[328839624,1717860681171,-500.0,0.00029863,4]
[328839625,1717860681180,-500.0,0.00029863,4]
[328839626,1717860681190,-518.03430266,0.00029863,4]
[328839627,1717860681200,-1231.54,0.00029863,4]
[328839628,1717860681210,-500.0,0.00029863,4]
[328839629,1717860681219,-500.0,0.00029863,4]
[328839630,1717860681229,-500.0,0.00029863,4]
[328839631,1717860681239,-1231.54,0.00029863,4]
[328839632,1717860681248,-500.0,0.00029863,4]
[328839633,1717860681257,-500.0,0.00029863,4]
[328839634,1717860681267,-1231.54,0.00029863,4]
[328839635,1717860681277,-500.0,0.00029863,4]
[328839636,1717860681286,-500.0,0.00029863,4]
[328839637,1717860681295,-241.90305937,0.00029863,4]
[328839638,1717860681304,-500.0,0.00029863,4]
[328839639,1717860681314,-500.0,0.00029863,4]
[328839640,1717860681323,-1231.54,0.00029863,4]
[328839641,1717860681333,-512.20453013,0.00029863,4]
[328839642,1717860681342,-500.0,0.00029863,4]
[328839643,1717860681352,-1231.54,0.00029863,4]
[328839644,1717860681362,-500.0,0.00029863,4]
[328839645,1717860681372,-1231.54,0.00029863,4]
[328839646,1717860681381,-500.0,0.00029863,4]
[328839647,1717860681392,-500.0,0.00029863,4]
[328839648,1717860681402,-1231.54,0.00029863,4]
[328839649,1717860681412,-500.0,0.00029863,4]
[328839650,1717860681421,-500.0,0.00029863,4]
[328839651,1717860681431,-1231.54,0.00029863,4]
[328839652,1717860681440,-500.0,0.00029863,4]
[328839653,1717860681449,-607.35104942,0.00029863,4]
[328839654,1717860681458,-1231.54,0.00029863,4]
[328839655,1717860681468,-151.0,0.00029863,7]
[328839656,1717860681477,-500.0,0.00029863,4]
[328839657,1717860681487,-1231.54,0.00029863,4]
[328839658,1717860681497,-196.42935,0.00029863,7]
[328839659,1717860681506,-509.04460881,0.00029863,4]
[328839660,1717860681516,-1231.54,0.00029863,4]
[328839661,1717860681526,-500.0,0.00029863,4]
[328839662,1717860681539,-1231.54,0.00029863,4]
[328839663,1717860681549,-500.0,0.00029863,4]
[328839664,1717860681559,-1142.4,0.00029863,2]
[328839665,1717860681569,-1231.54,0.00029863,4]
[328839666,1717860681582,-500.0,0.00029863,4]
[328839667,1717860681593,-1142.4,0.00029863,2]
[328839668,1717860681604,-1231.75212191,0.00029863,4]
[328839669,1717860681615,-500.0,0.00029863,4]
[328839670,1717860681625,-1142.4,0.00029863,2]
[328839671,1717860681635,-154.82396605,0.00029863,4]
[328839672,1717860681646,-1142.4,0.00029863,2]
[328839673,1717860681656,-278.47963357,0.00029863,4]
[328839674,1717860681667,-1142.4,0.00029863,2]
[328839675,1717860681676,-1142.4,0.00029863,2]
[328839676,1717860681686,-500.0,0.00029863,4]
[328839677,1717860681695,-1142.4,0.00029863,2]
[328839678,1717860681706,-500.0,0.00029863,4]
[328839679,1717860681716,-1142.4,0.00029863,2]
[328839680,1717860681726,-500.0,0.00029863,4]
[328839681,1717860681736,-1142.4,0.00029863,2]
[328839682,1717860681747,-500.0,0.00029863,4]
[328839683,1717860681757,-1142.4,0.00029863,2]
[328839684,1717860681767,-500.0,0.00029863,4]
[328839685,1717860681777,-500.0,0.00029863,4]
[328839686,1717860681787,-1142.4,0.00029863,2]
[328839687,1717860681797,-500.0,0.00029863,4]
[328839688,1717860681808,-1142.4,0.00029863,2]
[328839689,1717860681817,-500.0,0.00029863,4]
[328839690,1717860681827,-1142.4,0.00029863,2]
[328839691,1717860681837,-1142.4,0.00029863,2]
[328839692,1717860681848,-500.0,0.00029863,4]
[328839693,1717860681858,-500.0,0.00029863,4]
[328839694,1717860681868,-1142.4,0.00029863,2]
[328839695,1717860681877,-500.0,0.00029863,4]
[328839696,1717860681887,-500.0,0.00029863,4]
[328839697,1717860681896,-500.0,0.00029863,4]
[328839698,1717860681905,-1142.4,0.00029863,2]
[328839699,1717860681915,-500.0,0.00029863,4]
[328839700,1717860681926,-500.0,0.00029863,4]
[328839701,1717860681935,-1142.4,0.00029863,2]
[328839702,1717860681945,-505.59956126,0.00029863,4]
[328839703,1717860681955,-500.0,0.00029863,4]
[328839704,1717860681964,-513.79,0.00029863,4]
[328839705,1717860681974,-500.0,0.00029863,4]
[328839706,1717860681984,-1142.4,0.00029863,2]
[328839707,1717860681993,-500.0,0.00029863,4]
[328839708,1717860682003,-513.79,0.00029863,4]
[328839709,1717860682012,-500.0,0.00029863,4]
[328839710,1717860682022,-1142.4,0.00029863,2]
[328839711,1717860682032,-500.0,0.00029863,4]
[328839712,1717860682042,-513.79,0.00029863,4]
[328839713,1717860682054,-500.0,0.00029863,4]
[328839714,1717860682064,-1142.4,0.00029863,2]
[328839715,1717860682075,-500.0,0.00029863,4]
[328839716,1717860682085,-513.79,0.00029863,4]
[328839717,1717860682095,-400.23895895,0.00029863,4]
[328839718,1717860682105,-1142.4,0.00029863,2]
[328839719,1717860682115,-513.79,0.00029863,4]
[328839720,1717860682125,-706.04,0.00029863,4]
[328839721,1717860682135,-1142.4,0.00029863,2]
[328839722,1717860682145,-500.0,0.00029863,4]
[328839723,1717860682155,-706.04,0.00029863,4]
[328839724,1717860682165,-513.79,0.00029863,4]
[328839725,1717860682176,-500.0,0.00029863,4]
[328839726,1717860682186,-513.79,0.00029863,4]
[328839727,1717860682196,-706.04,0.00029863,4]
[328839728,1717860682206,-1142.4,0.00029863,2]
[328839729,1717860682216,-500.0,0.00029863,4]
[328839730,1717860682226,-513.79,0.00029863,4]
[328839731,1717860682235,-706.04,0.00029863,4]
[328839732,1717860682246,-1142.54522176,0.00029863,2]
[328839733,1717860682256,-513.79,0.00029863,4]
[328839734,1717860682266,-500.0,0.00029863,4]
[328839735,1717860682277,-706.04,0.00029863,4]
[328839736,1717860682288,-513.79,0.00029863,4]
[328839737,1717860682298,-52272.47611082,0.00029863,2]
[328839738,1717860682309,-500.0,0.00029863,4]
[328839739,1717860682319,-706.04,0.00029863,4]
[328839740,1717860682330,-513.79,0.00029863,4]
[328839741,1717860682340,-500.0,0.00029863,4]
[328839742,1717860682352,-513.79,0.00029863,4]
[328839743,1717860682363,-706.04,0.00029863,4]
[328839744,1717860682372,-500.0,0.00029863,4]
[328839745,1717860682382,-513.79,0.00029863,4]
[328839746,1717860682392,-706.04,0.00029863,4]
[328839747,1717860682403,-500.0,0.00029863,4]
[328839748,1717860682412,-513.79,0.00029863,4]
[328839749,1717860682422,-706.04,0.00029863,4]
[328839750,1717860682431,-555.86261208,0.00029863,4]
[328839751,1717860682441,-513.79,0.00029863,4]
[328839752,1717860682451,-706.04,0.00029863,4]
[328839753,1717860682461,-513.79,0.00029863,4]
[328839754,1717860682471,-706.04,0.00029863,4]
[328839755,1717860682480,-513.79,0.00029863,4]
[328839756,1717860682489,-706.04,0.00029863,4]
[328839757,1717860682499,-198.33089043,0.00029863,4]
[328839758,1717860682509,-513.79,0.00029863,4]
[328839759,1717860682519,-500.0,0.00029863,4]
[328839760,1717860682528,-706.04,0.00029863,4]
[328839761,1717860682539,-513.79,0.00029863,4]
[328839762,1717860682550,-500.0,0.00029863,4]
[328839763,1717860682559,-706.04,0.00029863,4]
[328839764,1717860682569,-500.0,0.00029863,4]
[328839765,1717860682580,-513.79,0.00029863,4]
[328839766,1717860682589,-500.0,0.00029863,4]
[328839767,1717860682601,-706.04,0.00029863,4]
[328839768,1717860682610,-500.0,0.00029863,4]
[328839769,1717860682622,-513.79,0.00029863,4]
[328839770,1717860682632,-500.0,0.00029863,4]
[328839771,1717860682641,-500.0,0.00029863,4]
[328839772,1717860682651,-706.04,0.00029863,4]
[328839773,1717860682660,-513.79,0.00029863,4]
[328839774,1717860682670,-500.0,0.00029863,4]
[328839775,1717860682679,-500.0,0.00029863,4]
[328839776,1717860682689,-513.79,0.00029863,4]
[328839777,1717860682699,-500.0,0.00029863,4]
[328839778,1717860682708,-500.0,0.00029863,4]
[328839779,1717860682719,-500.0,0.00029863,4]
[328839780,1717860682729,-1247.83,0.00029863,4]
[328839781,1717860682740,-706.04,0.00029863,4]
[328839782,1717860682750,-513.97697841,0.00029863,4]
[328839783,1717860682760,-500.0,0.00029863,4]
[328839784,1717860682771,-500.0,0.00029863,4]
[328839785,1717860682781,-500.0,0.00029863,4]
[328839786,1717860682791,-1247.83,0.00029863,4]
[328839787,1717860682802,-706.04,0.00029863,4]
[328839788,1717860682812,-500.0,0.00029863,4]
[328839789,1717860682822,-500.0,0.00029863,4]
[328839790,1717860682832,-500.0,0.00029863,4]
[328839791,1717860682842,-706.04,0.00029863,4]
[328839792,1717860682854,-500.0,0.00029863,4]
[328839793,1717860682863,-500.0,0.00029863,4]
[328839794,1717860682873,-500.0,0.00029863,4]
[328839795,1717860682883,-1247.83,0.00029863,4]
[328839796,1717860682893,-706.04,0.00029863,4]
[328839797,1717860682903,-500.0,0.00029863,4]
[328839798,1717860682913,-500.0,0.00029863,4]
[328839799,1717860682923,-500.0,0.00029863,4]
[328839800,1717860682933,-1247.83,0.00029863,4]
[328839801,1717860682943,-706.04,0.00029863,4]
[328839802,1717860682953,-500.0,0.00029863,4]
[328839803,1717860682962,-155.99669593,0.00029863,2]
[328839804,1717860682972,-611.11825626,0.00029863,4]
[328839805,1717860682982,-1247.83,0.00029863,4]
[328839806,1717860682992,-500.0,0.00029863,4]
[328839807,1717860683002,-500.0,0.00029863,4]
[328839808,1717860683012,-1247.83,0.00029863,4]
[328839809,1717860683022,-706.04,0.00029863,4]
[328839810,1717860683031,-500.0,0.00029863,4]
[328839811,1717860683041,-500.0,0.00029863,4]
[328839812,1717860683050,-500.0,0.00029863,4]
[328839813,1717860683060,-500.0,0.00029863,4]
[328839814,1717860683070,-706.04,0.00029863,4]
[328839815,1717860683080,-1247.83,0.00029863,4]
[328839816,1717860683090,-500.0,0.00029863,4]
[328839817,1717860683102,-1247.83,0.00029863,4]
[328839818,1717860683112,-706.21167741,0.00029863,4]
[328839819,1717860683121,-500.0,0.00029863,4]
[328839820,1717860683131,-3308.42494601,0.00029863,2]
[328839821,1717860683142,-109690.55516469,0.00029863,2]
[328839822,1717860683151,-157.23584819,0.00029863,2]
[328839823,1717860683161,-1587.65166305,0.00029863,2]
[328839824,1717860683172,-3248.41673555,0.00029864,2]
[328839825,1717860683182,-3248.41673555,0.00029882,2]
[328839826,1717860683192,-2052.03361759,0.00029896,2]
[328839827,1717860683202,-2052.9404249,0.00029897,2]
[328839828,1717860683212,-2586.0,0.00029898,10]
[328839829,1717860683223,-2052.0510639,0.00029898,2]
[328839830,1717860683233,-2050.3609929,0.00029899,2]
[328839831,1717860683243,-157.07252978,0.000299,2]
[328839832,1717860683253,-3000.0,0.000299,2]
[328839833,1717860683391,-158.51,0.000299,7]
[328839834,1717860683402,-156.8,0.000299,7]
[328839835,1717860683412,-160.0,0.000299,2]
[328839836,1717860683422,-3248.41673555,0.000299,2]
[328839837,1717860683432,-1003.44,0.000299,2]
[328839838,1717860683443,-180.16898066,0.000299,15]
[328839839,1717860683452,-159.11,0.000299,7]
[328839840,1717860683462,-162.21,0.000299,7]
[328839841,1717860683472,-313.7,0.000299,2]
[328839842,1717860683482,-288.15,0.00029908,2]
[328839843,1717860683492,-5000.0,0.00029948,2]
[328839844,1717860683502,-211.0,0.0002995,2]
[328839845,1717860683512,-5000.0,0.00029952,2]
[328839846,1717860683522,-300.0,0.0002996,120]
[328839847,1717860683532,-401.71019423,0.0002997,2]
[328839848,1717860683546,-400.0,0.0002997,2]
[328839849,1717860683557,-400.0,0.0002997,2]
[328839850,1717860683569,-462.41261257,0.0002997,2]
[328839851,1717860683581,-400.0,0.0002997,2]
[328839852,1717860683592,-300.0,0.0002997,2]
[328839853,1717860683602,-13958.54409416,0.00029975,14]
[328839854,1717860683613,-262.0,0.00029989,15]
[328839855,1717860683623,-391.51965964,0.0002999,3]
[328839856,1717860683634,-346.20145903,0.00029995,3]
[328839857,1717860683644,-9210.84921184,0.00029996,2]
[328839858,1717860683655,-160.07290368,0.00029997,2]
[328839859,1717860683665,-2644.44518908,0.00029998,2]
[328839860,1717860683675,-500.0,0.00029998,3]
[328839861,1717860683686,-150.0,0.00029999,2]
[328839862,1717860683695,-368.89779456,0.00029999,2]
[328839863,1717860683705,-74305.54227389,0.00029999,2]
[328839864,1717860683714,-70794.79515407,0.00029999,2]
[328839865,1717860683724,-11073.40677507,0.00029999,2]
[328839866,1717860683734,-154.57211479,0.00029999,2]
[328839867,1717860683743,-200.22682,0.00029999,7]
[328839868,1717860683754,-197.666222,0.00029999,7]
[328839869,1717860683763,-197.666222,0.00029999,7]
[328839870,1717860683773,-151.0,0.00029999,7]
[328839871,1717860683782,-151.0,0.00029999,7]
[328839872,1717860683792,-151.0,0.00029999,7]
[328839873,1717860683802,-151.0,0.00029999,7]
[328839874,1717860683812,-151.0,0.00029999,7]
[328839875,1717860683821,-151.0,0.00029999,7]
[328839876,1717860683832,-151.0,0.00029999,7]
[328839877,1717860683844,-151.0,0.00029999,7]
[328839878,1717860683854,-459.675928,0.00029999,7]
[328839879,1717860683863,-264.664328,0.00029999,7]
[328839880,1717860683873,-459.675928,0.00029999,7]
[328839881,1717860683884,-151.0,0.00029999,7]
[328839882,1717860683895,-151.0,0.00029999,7]
[328839883,1717860683905,-151.0,0.00029999,7]
[328839884,1717860683916,-20893306.4492267,0.0003,2]
[328839885,1717860683926,-3419542.55365234,0.0003,2]
[328839886,1717860683936,-2000.0,0.0003,14]
[328839887,1717860683947,-614719.13963356,0.0003,2]
[328839888,1717860683957,-1390074.85694227,0.0003,2]
[328839889,1717860683967,-1118655.10778406,0.0003,2]
[328839890,1717860683977,-618.8455733,0.0003,2]
[328839891,1717860683988,-1292864.70512946,0.0003,2]
[328839892,1717860683998,-2000.0,0.0003,2]
[328839893,1717860684008,-538.0,0.0003,2]
[328839894,1717860684018,-1271075.18046712,0.0003,2]
[328839895,1717860684027,-486540.54611951,0.0003,2]
[328839896,1717860684037,-8880.30082413,0.0003,4]
[328839897,1717860684048,-1700296.08839834,0.0003,2]
[328839898,1717860684057,-577.90040005,0.0003,7]
[328839899,1717860684067,-457045.66746321,0.0003,2]
[328839900,1717860684077,-5505344.21544326,0.0003,2]
[328839901,1717860684086,-180962.28047222,0.0003,2]
[328839902,1717860684097,-401.22,0.0003,4]
[328839903,1717860684107,-1206293.73512049,0.0003,2]
[328839904,1717860684116,-151.66626906,0.0003,7]
[328839905,1717860684126,-9999.999999,0.0003,2]
[328839906,1717860684135,-497987.56427252,0.0003,2]
[328839907,1717860684146,-1235344.73638787,0.0003,2]
[328839908,1717860684155,-345.0,0.0003,2]
[328839909,1717860684165,-6502623.21399471,0.0003,2]
[328839910,1717860684174,-3345.4436446,0.0003,2]
[328839911,1717860684184,-155.0,0.0003,2]
[328839912,1717860684194,-2351.20453032,0.0003,4]
[328839913,1717860684204,-155.0,0.0003,2]
[328839914,1717860684214,-14673.88411953,0.0003,2]
[328839915,1717860684224,-66473.01773374,0.0003,2]
[328839916,1717860684235,-23906.24811194,0.0003,4]
[328839917,1717860684245,-846.56086915,0.0003,10]
[328839918,1717860684255,-2182.90863206,0.0003,10]
[328839919,1717860684265,-232.66516581,0.0003,4]
[328839920,1717860684276,-11990.89343673,0.0003,4]
[328839921,1717860684286,-345.0,0.0003,2]
[328839922,1717860684296,-1500.0,0.0003,2]
[328839923,1717860684306,-1500.0,0.0003,2]
[328839924,1717860684317,-1500.0,0.0003,2]
[328839925,1717860684326,-1500.0,0.0003,2]
[328839926,1717860684336,-1500.0,0.0003,2]
[328839927,1717860684348,-1500.0,0.0003,2]
[328839928,1717860684358,-1500.0,0.0003,2]
[328839929,1717860684368,-1500.0,0.0003,2]
[328839930,1717860684378,-1500.0,0.0003,2]
[328839931,1717860684388,-1500.0,0.0003,2]
[328839932,1717860684397,-175.24,0.0003,2]
[328839933,1717860684407,-6590.51030837,0.0003,10]
[328839934,1717860684417,-118331125.03996773,0.0003,2]
[328839935,1717860684426,-1656450.20401431,0.0003,2]
[328839936,1717860684904,-3344.56591795,0.0003,2]
[328839937,1717860684916,-931.13278959,0.0003,2]
[328839938,1717860684961,-500.0,0.00029863,4]
[328839939,1717860684971,-500.0,0.00029863,4]
[328839940,1717860684980,-655.90047631,0.00029863,4]
[328839941,1717860684991,-591.92952369,0.00029863,4]
[328839942,1717860685001,-258.07047628,0.00029863,4]
[328839943,1717860685013,-241.92952372,0.00029863,4]
[328839944,1717860685023,-500.0,0.00029863,4]
[328839945,1717860685032,-500.0,0.00029863,4]
[328839946,1717860685042,-104.42857077,0.00029863,4]
[328839947,1717860685054,-395.57142923,0.00029863,4]
[328839948,1717860685065,-1247.83,0.00029863,4]
[328839949,1717860685074,-649.43499528,0.0003,2]
[328839950,1717860685086,-314305.94878763,0.0003,2]
[328839951,1717860685099,-4476.54721135,0.0003,2]
[328839952,1717860685111,-3597.99853864,0.0003,2]
[328839953,1717860685123,-774.19655422,0.0003,2]
[328839954,1717860685134,-2696.61890355,0.0003,2]
[328839955,1717860685146,-4592.15178615,0.0003,2]
[328839956,1717860685158,-431.96925012,0.0003,2]
[328839957,1717860685171,-3997.80695085,0.0003,2]
[328839958,1717860685183,-1091.17424659,0.0003,2]
[328839959,1717860685194,-2210.75000075,0.0003,2]
[328839960,1717860685206,-1671.17631581,0.0003,2]
[328839961,1717860685218,-572308.04569567,0.0003,2]
[328839962,1717860685230,-4916.29553346,0.0003,2]
[328839963,1717860685241,-284.2125,0.0003,2]
[328839964,1717860685252,-28425.56660543,0.0003,2]
[328839965,1717860685264,-551.53298961,0.0003,2]
[328839966,1717860685275,-1680.37818217,0.0003,2]
[328839967,1717860685310,-276.387,0.00023028,2]
[328839968,1717860685320,-216.79167063,0.00029863,4]
[328839969,1717860685331,-283.20832937,0.00029863,4]
[328839970,1717860685341,-336.48844336,0.00029863,4]
[328839971,1717860685355,-163.51155664,0.00029863,4]
[328839972,1717860685365,-500.0,0.00029863,4]
[328839973,1717860685375,-500.0,0.00029863,4]
[328839974,1717860685385,-63545.31887582,0.0003,2]
[328839975,1717860685397,-306.76,0.0003,2]
[328839976,1717860685409,-743.74511592,0.0003,2]
[328839977,1717860685425,-968.49131176,0.0003,2]
[328839978,1717860685436,-2636.23402685,0.0003,2]
[328839979,1717860685448,-1542.7683886,0.0003,2]
[328839981,1717860803496,-300.0,0.00016929,2]
[328839982,1717860803526,-1158.38807917,0.00017029,2]
[328839983,1717860803554,-1996.3195,0.0001716,2]
[328839984,1717860823751,106545.29242083,0.00014,2]
[328839985,1717860823794,1268122.41228549,0.00014,2]
[328839986,1717860850309,783.17738963,0.00011,2]
[328839989,1717861043244,155.0,0.00014998,30]
[328839990,1717861061243,155.0,0.00014998,30]
[328839991,1717861074856,-185.99482265,0.00014989,2]
[328839992,1717861074878,-661.22,0.0001499,3]
[328839993,1717861074901,-864.32516302,0.00014998,2]
[328839994,1717861074926,-1624.86434005,0.00014999,2]
[328839995,1717861074949,-24546.59567428,0.00015,2]
[328839996,1717861079242,168.90256538,0.00014999,30]
[328840003,1717861636134,-158.32276938,0.00014996,2]
[328840004,1717861636156,-3385.76959702,0.00014996,2]
[328840005,1717861636181,-507.36824325,0.00014998,2]
[328840006,1717861636202,-268.65571135,0.00014998,2]
[328840007,1717861636224,-269.17328895,0.00014998,2]
[328840008,1717861636245,-436.45543559,0.00014998,2]
[328840009,1717861636266,-155.0,0.00014998,2]
[328840010,1717861636292,-156.65426429,0.00014998,2]
[328840011,1717861636314,-155.0,0.00014998,2]
[328840023,1717861832902,-151.63,0.0001499,2]
[328840024,1717861832912,-975.17000001,0.00014994,2]
[328840025,1717861832925,-756.03810701,0.00014994,2]
[328840026,1717861832940,-3850.43031507,0.00014994,2]
[328840028,1717861832950,-1624.86434005,0.00014994,2]
[328840030,1717861832959,-1411.21168164,0.00014995,2]
[328840032,1717861832970,-3384.77160162,0.00014998,2]
[328840034,1717861832980,-157.93299216,0.00014998,2]
[328840036,1717861832990,-155.0,0.00014998,2]
[328840037,1717861833001,-7960.19874885,0.00014999,2]
[328840038,1717861833012,-291.43608302,0.00015,2]
[328840039,1717861833023,-3421.26789501,0.00015,2]
[328840040,1717861833034,-12688.63619916,0.00015,2]
[328840041,1717861833046,-405412.1239706,0.00015,2]
[328840042,1717861833473,-295.44814184,0.00015,2]
[328840064,1717861839785,-119.1208069,0.00015,2]
[328840065,1717861839891,-333.82,0.00015,2]
[328840069,1717861842901,-1491.20882007,0.00015,2]
[328840070,1717861842913,-526.02488287,0.00015,2]
[328840071,1717861842924,-2557.57522176,0.00015,2]
[328840072,1717861842939,-670.7,0.00015,2]
[328840073,1717861842951,-12352.45380573,0.00015,2]
[328840074,1717861843561,-271.26559914,0.00015,2]
[328840075,1717861843574,-1974.92021585,0.00015,2]
[328840076,1717861843585,-369.52500001,0.00015,2]
[328840078,1717861843597,-12508.88913794,0.00015,2]
[328840079,1717861843608,-3753.150025,0.00015,2]
[328840080,1717861843620,-5156.20886332,0.00015,2]
[328840196,1717861846937,-1566.26339458,0.00015,2]
[328840205,1717861847003,-1647.09143245,0.00015,2]
[328840208,1717861847018,-4247.25,0.00015,2]
[328840210,1717861847030,-1525.32,0.00015,2]
[328840213,1717861847582,-4130.75520245,0.00015,2]
[328840214,1717861847594,-63796.24152661,0.00015,2]
[328840216,1717861847605,-1707.0,0.00015,2]
[328840219,1717861847617,-469.30795553,0.00015,2]
[328840221,1717861847629,-37250.0,0.00015,2]
[328840223,1717861847641,-2779.2,0.00015,2]
[328840225,1717861847652,-8972.87043737,0.00015,2]
[328840228,1717861847664,-1409.5,0.00015,2]
[328840230,1717861847675,-2166.1769928,0.00015,2]
[328840232,1717861847686,-377458.36081144,0.00015,2]
[328840234,1717861847698,-1388.01775311,0.00015,2]
[328840236,1717861847709,-4435.3332493,0.00015,2]
[328840239,1717861847721,-1070.04577274,0.00015,2]
[328840241,1717861847732,-4074.31430213,0.00015,2]
[328840243,1717861847743,-3704.42376876,0.00015,2]
[328840245,1717861847755,-1570.55517767,0.00015,2]
[328840248,1717861847768,-8544.7233514,0.00015,2]
[328840282,1717861848103,-852.44564925,0.00015,2]
[328840284,1717861848118,-51069.39928526,0.00015,2]
[328840435,1717862840119,-756.272884,0.00014815,2]
[328840436,1717862840140,-571.21478527,0.0001489,2]
[328840437,1717862950115,-322.29036066,0.0001489,2]
[328840442,1717863032645,-42.31745407,0.0001489,2]
[328840443,1717863032656,-322.46254593,0.000149,2]
[328840444,1717863032668,-226.23880608,0.000149,2]
[328840445,1717863032679,-161.84597815,0.000149,2]
[328840446,1717863032690,-368.18809934,0.000149,2]
[328840447,1717863032800,-2149.02,0.000149,2]
[328840481,1717863039739,-148.00185565,0.000149,2]
[328840482,1717863039750,-366.86756743,0.000149,2]
[328840483,1717863039760,-950.14696372,0.000149,2]
[328840484,1717863039771,-177.6625309,0.000149,2]
[328840485,1717863039781,-827.75998797,0.0001499,3]
[328840486,1717863039794,-42.16001203,0.0001499,3]
[328840487,1717863039804,-673.38953007,0.00015,2]
[328840488,1717863039816,-383.65,0.00015,2]
[328840489,1717863039828,-261.9,0.00015,2]
[328840490,1717863039840,-849.33,0.00015,2]
[328840491,1717863039852,-325.82,0.00015,2]
[328840492,1717863039969,-2887.72349811,0.00015,2]
[328840493,1717863040062,-3176.34784179,0.00015,2]
[328840494,1717863040075,-19176.04095806,0.00015,2]